[Event "Turkish Youth Championship 2024"]
[Site "Samsun"]
[Date "2024.05.19"]
[Round "3"]
[White "Akyuz, Pars"]
[Black "Hamurcu, Mehmet"]
[Result "0-1"]
[ECO "E33"]
[WhiteElo "1461"]
[BlackElo "1832"]
[Annotator "NA"]
[PlyCount "112"]
[EventDate "2024.05.18"]
[EventType "swiss"]
[EventCountry "TUR"]
[SourceTitle "playchess.com"]
[Source "ChessBase"]
[SourceQuality "1"]
[TimeControl "5400+30"]

1. d4 {[%emt 0:01:00]} Nf6 {[%emt 0:16:00]} 2. c4 {[%emt 0:00:00]} e6 {[%emt 0:03:30]} 3. Nc3 {[%emt 0:00:00]} Bb4 {[%emt 0:00:30]} 4. Qc2 {[%emt 0:00:30]} Nc6 {[%emt 0:00:00]} 5. Nf3 {[%emt 0:00:30]} d6 {[%emt 0:00:00]} 6. e4 {[%emt 0:00:30]} e5 {[%emt 0:07:30]} 7. d5 {[%emt 0:01:30]} Bxc3+ {[%emt 0:00:00]} 8. bxc3 {[%emt 0:01:30]} Ne7 {[%emt 0:00:00]} 9. c5 {[%emt 0:02:30]} Ng6 {[%emt 0:02:30]} 10. Bb5+ {[%emt 0:00:30]} Bd7 {[%emt 0:00:00]} 11. Bxd7+ {[%emt 0:00:30]} Qxd7 {[%emt 0:01:00]} 12. cxd6 {[%emt 0:01:30]} cxd6 {[%emt 0:00:30]} 13. O-O {[%emt 0:04:30]} O-O {[%emt 0:00:30]} 14. Bg5 {[%emt 0:05:30]} Nh5 {[%emt 0:01:30]} 15. Nh4 {[%emt 0:10:30]} h6 {[%emt 0:05:30]} 16. Nxg6 {[%emt 0:01:30]} fxg6 {[%emt 0:00:00]} 17. Be3 {[%emt 0:00:30]} Rac8 {[%emt 0:02:00]} 18. Qb3 {[%emt 0:03:30]} b6 {[%emt 0:01:30]} 19. a4 {[%emt 0:01:30]} g5 {[%emt 0:05:30]} 20. a5 {[%emt 0:06:30]} b5 {[%emt 0:00:30]} 21. a6 {[%emt 0:03:30]} Nf4 {[%emt 0:04:30]} 22. Bxf4 {[%emt 0:00:30]} Rxf4 {[%emt 0:01:30]} 23. Rab1 {[%emt 0:05:30]} Rxe4 {[%emt 0:04:30]} 24. Qxb5 {[%emt 0:00:30]} Qxb5 {[%emt 0:00:00]} 25. Rxb5 {[%emt 0:00:30]} Rxc3 {[%emt 0:00:00]} 26. Rb7 {[%emt 0:00:30]} Ra4 {[%emt 0:00:30]} 27. Rxa7 {[%emt 0:01:30]} Rca3 {[%emt 0:00:00]} 28. h3 {[%emt 0:01:30]} Rxa6 {[%emt 0:00:00]} 29. Rd7 {[%emt 0:00:30]} Ra1 {[%emt 0:00:30]} 30. Rxa1 {[%emt 0:01:30]} Rxa1+ {[%emt 0:00:00]} 31. Kh2 {[%emt 0:00:30]} Ra6 {[%emt 0:00:00]} 32. Kg3 {[%emt 0:00:30]} Kh7 {[%emt 0:00:30]} 33. h4 {[%emt 0:04:30]} gxh4+ {[%emt 0:01:30]} 34. Kxh4 {[%emt 0:00:30]} Kg6 {[%emt 0:00:30]} 35. Kg3 {[%emt 0:02:30]} Kf6 {[%emt 0:00:30]} 36. f3 {[%emt 0:01:30]} h5 {[%emt 0:01:30]} 37. Kh4 {[%emt 0:01:30]} Ra4+ {[%emt 0:01:30]} 38. Kg3 {[%emt 0:01:30]} Ra6 {[%emt 0:00:30]} 39. Kh4 {[%emt 0:00:30]} g6 {[%emt 0:00:30]} 40. g4 {[%emt 0:05:30]} hxg4 {[%emt 0:00:00]} 41. Kxg4 {[%emt 0:01:30]} Rb6 {[%emt 0:00:00]} 42. Kh4 {[%emt 0:00:30]} e4 {[%emt 0:23:30]} 43. fxe4 {[%emt 0:02:30]} Ke5 {[%emt 0:02:02]} 44. Re7+ {[%emt 0:01:30]} Kf4 {[%emt 0:00:01]} 45. Re6 {[%emt 0:04:30]} g5+ {[%emt 0:00:27]} 46. Kh5 {[%emt 0:01:30]} g4 {[%emt 0:01:39]} 47. e5 {[%emt 0:04:44]} g3 {[%emt 0:01:31]} 48. exd6 {[%emt 0:06:23]} g2 {[%emt 0:01:49]} 49. d7 {[%emt 0:00:53]} Rb8 {[%emt 0:00:16]} 50. Re1 {[%emt 0:01:33]} Rd8 {[%emt 0:01:29]} 51. Rc1 {[%emt 0:04:20]} Rxd7 {[%emt 0:00:19]} 52. Rb1 {[%emt 0:01:15]} Rh7+ {[%emt 0:01:09]} 53. Kg6 {[%emt 0:00:29]} Rh1 {[%emt 0:00:05]} 54. Rb4+ {[%emt 0:00:58]} Ke5 {[%emt 0:00:02]} 55. Rg4 {[%emt 0:00:05]} g1=Q {[%emt 0:00:37]} 56. Rxg1 {[%emt 0:00:09]} Rxg1+ {[%emt 0:00:00]} 0-1

[Event "Turkish Youth Championship 2024"]
[Site "Samsun"]
[Date "2024.05.20"]
[Round "4"]
[White "Topuz, Mirac Melih"]
[Black "Uzdemir, Ali Poyraz"]
[Result "0-1"]
[ECO "E16"]
[WhiteElo "2079"]
[BlackElo "1898"]
[Annotator "ChessBase"]
[PlyCount "120"]
[EventDate "2024.05.18"]
[EventType "swiss"]
[EventCountry "TUR"]
[SourceTitle "playchess.com"]
[Source "ChessBase"]
[SourceQuality "1"]
[TimeControl "5400+30"]

1. d4 {[%emt 0:01:00]} Nf6 {[%emt 0:01:00]} 2. c4 {[%emt 0:00:30]} e6 {[%emt 0:00:00]} 3. Nf3 {[%emt 0:00:00]} b6 {[%emt 0:00:00]} 4. g3 {[%emt 0:00:00]} Bb7 {[%emt 0:00:30]} 5. Bg2 {[%emt 0:00:30]} Bb4+ {[%emt 0:00:30]} 6. Nbd2 {[%emt 0:01:30]} c5 {[%emt 0:02:30]} 7. a3 {[%emt 0:00:30]} Bxd2+ {[%emt 0:00:30]} 8. Qxd2 {[%emt 0:00:00]} d5 {[%emt 0:13:30]} 9. cxd5 {[%emt 0:03:00]} Qxd5 {[%emt 0:03:30]} 10. dxc5 {[%emt 0:01:30]} bxc5 {[%emt 0:00:30]} 11. O-O {[%emt 0:03:30]} O-O {[%emt 0:03:30]} 12. Rd1 {[%emt 0:11:30]} Nc6 {[%emt 0:10:30]} 13. Qxd5 {[%emt 0:01:30]} exd5 {[%emt 0:00:30]} 14. Bg5 {[%emt 0:20:30]} Ne4 {[%emt 0:11:30]} 15. Bf4 {[%emt 0:00:30]} f6 {[%emt 0:04:30]} 16. Rxd5 {[%emt 0:18:30]} Nd4 {[%emt 0:01:30]} 17. Rxd4 {[%emt 0:00:30]} cxd4 {[%emt 0:00:30]} 18. Nxd4 {[%emt 0:00:30]} g5 {[%emt 0:01:30]} 19. Be3 {[%emt 0:01:30]} Nd6 {[%emt 0:01:30]} 20. Nc6 {[%emt 0:16:18]} Rfe8 {[%emt 0:05:30]} 21. g4 {[%emt 0:12:37]} Ne4 {[%emt 0:13:30]} 22. Na5 {[%emt 0:00:52]} Bd5 {[%emt 0:02:30]} 23. Rd1 {[%emt 0:00:27]} Rad8 {[%emt 0:02:30]} 24. Bxa7 {[%emt 0:01:10]} Ba8 {[%emt 0:00:30]} 25. Bd4 {[%emt 0:00:31]} Re7 {[%emt 0:00:32]} 26. e3 {[%emt 0:00:18]} Ra7 {[%emt 0:00:46]} 27. Nc4 {[%emt 0:01:52]} Rc7 {[%emt 0:00:29]} 28. Nb6 {[%emt 0:00:24]} Bb7 {[%emt 0:00:22]} 29. f3 {[%emt 0:00:54]} Nc5 {[%emt 0:02:42]} 30. Rc1 {[%emt 0:00:08]} Ne6 {[%emt 0:00:07]} 31. Rxc7 {[%emt 0:00:30]} Nxc7 {[%emt 0:00:00]} 32. Bxf6 {[%emt 0:00:00]} Rd6 {[%emt 0:00:51]} 33. Bd4 {[%emt 0:00:17]} Ne6 {[%emt 0:00:17]} 34. Nc4 {[%emt 0:01:47]} Rc6 {[%emt 0:00:16]} 35. b3 {[%emt 0:00:10]} Nxd4 {[%emt 0:00:21]} 36. exd4 {[%emt 0:00:30]} Rc7 {[%emt 0:00:30]} 37. Kf2 {[%emt 0:00:30]} Bd5 {[%emt 0:00:30]} 38. Bf1 {[%emt 0:00:30]} Rb7 {[%emt 0:00:00]} 39. Na5 {[%emt 0:02:31]} Ra7 {[%emt 0:00:14]} 40. b4 {[%emt 0:00:41]} Rc7 {[%emt 0:00:31]} 41. b5 {[%emt 0:00:12]} Rc3 {[%emt 0:03:03]} 42. b6 {[%emt 0:00:23]} Rxf3+ {[%emt 0:01:08]} 43. Ke1 {[%emt 0:00:30]} Rxa3 {[%emt 0:00:39]} 44. b7 {[%emt 0:00:56]} Ra1+ {[%emt 0:00:19]} 45. Kd2 {[%emt 0:00:22]} Rb1 {[%emt 0:01:16]} 46. Ba6 {[%emt 0:00:17]} Kf8 {[%emt 0:00:37]} 47. Kc2 {[%emt 0:00:46]} Rb6 {[%emt 0:00:51]} 48. Kc3 {[%emt 0:00:11]} Ke7 {[%emt 0:00:03]} 49. Bd3 {[%emt 0:00:53]} h6 {[%emt 0:00:33]} 50. Bc4 {[%emt 0:00:31]} Bxb7 {[%emt 0:00:18]} 51. Nb3 {[%emt 0:00:30]} Kd6 {[%emt 0:00:39]} 52. Nc5 {[%emt 0:00:51]} Bd5 {[%emt 0:00:09]} 53. Bd3 {[%emt 0:00:22]} Rb8 {[%emt 0:00:11]} 54. Bf5 {[%emt 0:00:18]} Re8 {[%emt 0:00:05]} 55. Kd2 {[%emt 0:00:29]} Ra8 {[%emt 0:00:24]} 56. Nd7 {[%emt 0:00:29]} Be6 {[%emt 0:00:59]} 57. Nb6 {[%emt 0:00:31]} Rb8 {[%emt 0:00:15]} 58. Na4 {[%emt 0:00:00]} Rb4 {[%emt 0:00:00]} 59. Nc3 {[%emt 0:00:34]} Rxd4+ {[%emt 0:00:10]} 60. Ke3 {[%emt 0:00:00]} Rf4 {[%emt 0:00:02]} 0-1

[Event "Turkish Youth Championship 2024"]
[Site "Samsun"]
[Date "2024.05.20"]
[Round "4"]
[White "Danaci, Ege"]
[Black "Sadik, Muhammed Selim"]
[Result "1-0"]
[ECO "B33"]
[WhiteElo "2031"]
[BlackElo "1734"]
[Annotator "ChessBase"]
[PlyCount "89"]
[EventDate "2024.05.18"]
[EventType "swiss"]
[EventCountry "TUR"]
[SourceTitle "playchess.com"]
[Source "ChessBase"]
[SourceQuality "1"]
[TimeControl "5400+30"]

1. e4 {[%emt 0:01:00]} c5 {[%emt 0:01:00]} 2. Nf3 {[%emt 0:00:30]} e6 {[%emt 0:00:30]} 3. d4 {[%emt 0:00:30]} cxd4 {[%emt 0:00:30]} 4. Nxd4 {[%emt 0:00:30]} Nf6 {[%emt 0:00:00]} 5. Nc3 {[%emt 0:00:30]} Nc6 {[%emt 0:00:00]} 6. Ndb5 {[%emt 0:00:30]} d6 {[%emt 0:00:30]} 7. Bf4 {[%emt 0:00:00]} e5 {[%emt 0:00:00]} 8. Bg5 {[%emt 0:00:00]} a6 {[%emt 0:00:00]} 9. Na3 {[%emt 0:00:00]} b5 {[%emt 0:00:00]} 10. Nd5 {[%emt 0:00:00]} Be7 {[%emt 0:00:00]} 11. Bxf6 {[%emt 0:02:30]} Bxf6 {[%emt 0:00:00]} 12. c3 {[%emt 0:01:30]} O-O {[%emt 0:00:00]} 13. Nc2 {[%emt 0:05:30]} Rb8 {[%emt 0:01:30]} 14. Be2 {[%emt 0:00:30]} Bg5 {[%emt 0:00:30]} 15. Bg4 {[%emt 0:11:30]} Be6 {[%emt 0:09:30]} 16. O-O {[%emt 0:15:30]} Qd7 {[%emt 0:23:30]} 17. h3 {[%emt 0:17:30]} g6 {[%emt 0:06:30]} 18. Qd2 {[%emt 0:07:30]} Qd8 {[%emt 0:20:30]} 19. Qd3 {[%emt 0:00:00]} Bxd5 {[%emt 0:03:30]} 20. Qxd5 {[%emt 0:00:00]} Ne7 {[%emt 0:00:30]} 21. Qb3 {[%emt 0:00:00]} h5 {[%emt 0:04:30]} 22. Be2 {[%emt 0:04:00]} Rb6 {[%emt 0:00:30]} 23. Rfd1 {[%emt 0:01:30]} Qa8 {[%emt 0:02:30]} 24. Bf3 {[%emt 0:01:30]} Nc6 {[%emt 0:05:30]} 25. a4 {[%emt 0:03:30]} Qb8 {[%emt 0:02:07]} 26. a5 {[%emt 0:02:30]} Rb7 {[%emt 0:00:13]} 27. Qd5 {[%emt 0:00:00]} Qc8 {[%emt 0:00:59]} 28. Qxd6 {[%emt 0:01:00]} Rd8 {[%emt 0:00:20]} 29. Qc5 {[%emt 0:00:30]} Rxd1+ {[%emt 0:00:57]} 30. Bxd1 {[%emt 0:05:30]} Be7 {[%emt 0:00:53]} 31. Qe3 {[%emt 0:00:00]} Nd8 {[%emt 0:03:33]} 32. Qe1 {[%emt 0:01:00]} Ne6 {[%emt 0:01:24]} 33. Ne3 {[%emt 0:00:31]} b4 {[%emt 0:00:15]} 34. Bb3 {[%emt 0:01:19]} Nf4 {[%emt 0:01:00]} 35. Bc4 {[%emt 0:03:03]} Rc7 {[%emt 0:02:01]} 36. Qf1 {[%emt 0:00:04]} bxc3 {[%emt 0:00:34]} 37. bxc3 {[%emt 0:00:20]} Rc6 {[%emt 0:00:37]} 38. h4 {[%emt 0:06:33]} Bc5 {[%emt 0:03:13]} 39. Bd5 {[%emt 0:00:33]} Rf6 {[%emt 0:01:05]} 40. Qc4 {[%emt 0:01:10]} Qc7 {[%emt 0:02:15]} 41. Rb1 {[%emt 0:00:21]} Qxa5 {[%emt 0:01:01]} 42. Rb7 {[%emt 0:01:42]} Nxd5 {[%emt 0:00:34]} 43. Qxd5 {[%emt 0:01:39]} Qxc3 {[%emt 0:00:45]} 44. Qd8+ {[%emt 0:00:47]} Kg7 {[%emt 0:01:11]} 45. Qxf6+ {[%emt 0:00:08]} 1-0

[Event "Turkish Youth Championship 2024"]
[Site "Samsun"]
[Date "2024.05.20"]
[Round "4"]
[White "Buyuk, Eymen Eren"]
[Black "Yildirim, Orhun Ali"]
[Result "1-0"]
[ECO "E73"]
[WhiteElo "1999"]
[BlackElo "1561"]
[Annotator "NA"]
[PlyCount "53"]
[EventDate "2024.05.18"]
[EventType "swiss"]
[EventCountry "TUR"]
[SourceTitle "playchess.com"]
[Source "ChessBase"]
[SourceQuality "1"]
[TimeControl "5400+30"]

1. d4 {[%emt 0:02:00]} Nf6 {[%emt 0:01:00]} 2. c4 {[%emt 0:00:30]} g6 {[%emt 0:00:30]} 3. Nc3 {[%emt 0:00:00]} Bg7 {[%emt 0:00:00]} 4. e4 {[%emt 0:00:00]} d6 {[%emt 0:00:00]} 5. Be2 {[%emt 0:00:30]} O-O {[%emt 0:00:00]} 6. Be3 {[%emt 0:00:00]} e5 {[%emt 0:00:00]} 7. d5 {[%emt 0:00:00]} a5 {[%emt 0:00:30]} 8. g4 {[%emt 0:00:30]} Na6 {[%emt 0:04:30]} 9. h4 {[%emt 0:00:00]} Bd7 {[%emt 0:03:30]} 10. h5 {[%emt 0:02:00]} Qc8 {[%emt 0:11:30]} 11. f3 {[%emt 0:01:30]} Ne8 {[%emt 0:01:30]} 12. Qd2 {[%emt 0:03:30]} f5 {[%emt 0:04:30]} 13. h6 {[%emt 0:07:30]} Bh8 {[%emt 0:02:30]} 14. gxf5 {[%emt 0:01:30]} gxf5 {[%emt 0:00:30]} 15. f4 {[%emt 0:05:30]} exf4 {[%emt 0:03:30]} 16. Bxf4 {[%emt 0:00:30]} Nc5 {[%emt 0:00:30]} 17. exf5 {[%emt 0:09:30]} Bxf5 {[%emt 0:00:30]} 18. Nf3 {[%emt 0:01:30]} Nf6 {[%emt 0:00:30]} 19. Rg1+ {[%emt 0:01:30]} Kf7 {[%emt 0:01:30]} 20. Ng5+ {[%emt 0:01:30]} Ke7 {[%emt 0:01:30]} 21. O-O-O {[%emt 0:00:30]} a4 {[%emt 0:04:30]} 22. Rde1 {[%emt 0:01:30]} Kd7 {[%emt 0:00:30]} 23. Ne6 {[%emt 0:08:30]} Nxe6 {[%emt 0:04:30]} 24. dxe6+ {[%emt 0:00:00]} Bxe6 {[%emt 0:00:30]} 25. Nd5 {[%emt 0:00:00]} Qd8 {[%emt 0:11:30]} 26. Nb6+ {[%emt 0:01:30]} Kc6 {[%emt 0:08:30]} 27. Bf3+ {[%emt 0:00:30]} 1-0

[Event "Turkish Youth Championship 2024"]
[Site "Samsun"]
[Date "2024.05.20"]
[Round "4"]
[White "Ilgaz, Yusuf Kerem"]
[Black "Gokturk, Murat Kutay"]
[Result "1-0"]
[ECO "D11"]
[WhiteElo "1964"]
[BlackElo "1862"]
[Annotator "ChessBase"]
[PlyCount "73"]
[EventDate "2024.05.18"]
[EventType "swiss"]
[EventCountry "TUR"]
[SourceTitle "playchess.com"]
[Source "ChessBase"]
[SourceQuality "1"]
[TimeControl "5400+30"]

1. d4 {[%emt 0:01:00]} d5 {[%emt 0:01:00]} 2. c4 {[%emt 0:00:30]} c6 {[%emt 0:00:30]} 3. Nf3 {[%emt 0:00:00]} Nf6 {[%emt 0:00:00]} 4. g3 {[%emt 0:00:00]} Bf5 {[%emt 0:00:00]} 5. Nc3 {[%emt 0:00:00]} e6 {[%emt 0:01:30]} 6. Qb3 {[%emt 0:00:00]} Na6 {[%emt 0:20:30]} 7. c5 {[%emt 0:54:30]} Qc8 {[%emt 0:18:30]} 8. Nh4 {[%emt 0:01:30]} Bg4 {[%emt 0:07:30]} 9. f3 {[%emt 0:01:30]} Bh5 {[%emt 0:02:30]} 10. g4 {[%emt 0:03:30]} Bg6 {[%emt 0:00:30]} 11. Nxg6 {[%emt 0:07:30]} hxg6 {[%emt 0:00:30]} 12. Bf4 {[%emt 0:00:00]} Be7 {[%emt 0:08:30]} 13. O-O-O {[%emt 0:01:00]} Nd7 {[%emt 0:12:30]} 14. e4 {[%emt 0:03:30]} Nc7 {[%emt 0:10:21]} 15. Qa4 {[%emt 0:05:51]} a6 {[%emt 0:04:21]} 16. Kb1 {[%emt 0:05:17]} Kf8 {[%emt 0:05:48]} 17. Bd6 {[%emt 0:03:38]} Bxd6 {[%emt 0:02:50]} 18. cxd6 {[%emt 0:00:06]} Nb5 {[%emt 0:00:17]} 19. Bxb5 {[%emt 0:01:09]} axb5 {[%emt 0:01:17]} 20. Qb4 {[%emt 0:00:07]} Kg8 {[%emt 0:00:50]} 21. h4 {[%emt 0:00:31]} Qd8 {[%emt 0:00:39]} 22. h5 {[%emt 0:02:30]} g5 {[%emt 0:00:25]} 23. exd5 {[%emt 0:01:42]} exd5 {[%emt 0:00:03]} 24. Rde1 {[%emt 0:00:13]} Rh6 {[%emt 0:00:47]} 25. Re7 {[%emt 0:02:55]} Nf8 {[%emt 0:00:27]} 26. d7 {[%emt 0:02:07]} Nxd7 {[%emt 0:00:43]} 27. Rhe1 {[%emt 0:00:05]} Qf8 {[%emt 0:00:37]} 28. f4 {[%emt 0:01:28]} Re6 {[%emt 0:00:35]} 29. R1xe6 {[%emt 0:00:14]} fxe6 {[%emt 0:00:17]} 30. Qd6 {[%emt 0:00:21]} Nb6 {[%emt 0:01:09]} 31. Qxe6+ {[%emt 0:00:10]} Kh7 {[%emt 0:00:03]} 32. Rf7 {[%emt 0:02:37]} Qg8 {[%emt 0:00:26]} 33. Qg6+ {[%emt 0:00:29]} Kh8 {[%emt 0:00:01]} 34. h6 {[%emt 0:00:05]} Qh7 {[%emt 0:00:39]} 35. hxg7+ {[%emt 0:00:05]} Kg8 {[%emt 0:00:00]} 36. Rf8+ {[%emt 0:00:07]} Rxf8 {[%emt 0:00:05]} 37. gxf8=Q+ {[%emt 0:00:12]} 1-0

[Event "Turkish Youth Championship 2024"]
[Site "Samsun"]
[Date "2024.05.20"]
[Round "4"]
[White "Dogan, Umut Anil"]
[Black "Yogurtcuoglu, Cagan"]
[Result "0-1"]
[ECO "A11"]
[WhiteElo "1959"]
[BlackElo "1714"]
[Annotator "NA"]
[PlyCount "96"]
[EventDate "2024.05.18"]
[EventType "swiss"]
[EventCountry "TUR"]
[SourceTitle "playchess.com"]
[Source "ChessBase"]
[SourceQuality "1"]
[TimeControl "5400+30"]

1. Nf3 {[%emt 0:01:00]} Nf6 {[%emt 0:01:00]} 2. c4 {[%emt 0:00:00]} c6 {[%emt 0:00:00]} 3. Nc3 {[%emt 0:00:00]} d5 {[%emt 0:00:00]} 4. e3 {[%emt 0:00:30]} e6 {[%emt 0:00:30]} 5. b3 {[%emt 0:00:00]} Nbd7 {[%emt 0:00:30]} 6. Qc2 {[%emt 0:00:00]} Be7 {[%emt 0:00:30]} 7. Bb2 {[%emt 0:00:30]} O-O {[%emt 0:02:30]} 8. Be2 {[%emt 0:00:30]} Re8 {[%emt 0:02:30]} 9. O-O {[%emt 0:00:30]} b6 {[%emt 0:05:30]} 10. cxd5 {[%emt 0:03:30]} cxd5 {[%emt 0:03:30]} 11. Nb5 {[%emt 0:12:30]} Bb7 {[%emt 0:11:30]} 12. Qc7 {[%emt 0:06:30]} a6 {[%emt 0:01:30]} 13. Qxb7 {[%emt 0:05:30]} axb5 {[%emt 0:00:30]} 14. Rfc1 {[%emt 0:02:30]} b4 {[%emt 0:02:30]} 15. Rc6 {[%emt 0:07:30]} Ne4 {[%emt 0:00:00]} 16. Rc7 {[%emt 0:06:30]} Ndc5 {[%emt 0:36:00]} 17. Qxb6 {[%emt 0:00:00]} Rb8 {[%emt 0:06:30]} 18. Qc6 {[%emt 0:01:00]} Bd6 {[%emt 0:01:30]} 19. Be5 {[%emt 0:00:30]} Qxc7 {[%emt 0:00:30]} 20. Qxc7 {[%emt 0:00:30]} Bxc7 {[%emt 0:00:30]} 21. Bxc7 {[%emt 0:00:30]} Ra8 {[%emt 0:01:30]} 22. Be5 {[%emt 0:00:00]} f6 {[%emt 0:00:30]} 23. Bb2 {[%emt 0:00:00]} Rec8 {[%emt 0:00:30]} 24. Nd4 {[%emt 0:02:30]} Nxd2 {[%emt 0:01:30]} 25. f3 {[%emt 0:00:30]} Ncxb3 {[%emt 0:00:30]} 26. axb3 {[%emt 0:01:30]} Rxa1+ {[%emt 0:00:30]} 27. Bxa1 {[%emt 0:00:30]} Rc1+ {[%emt 0:00:00]} 28. Kf2 {[%emt 0:00:00]} Rxa1 {[%emt 0:00:00]} 29. Nc2 {[%emt 0:00:00]} Rb1 {[%emt 0:01:30]} 30. Nxb4 {[%emt 0:00:00]} Rxb3 {[%emt 0:00:30]} 31. Nd3 {[%emt 0:00:00]} Kf7 {[%emt 0:00:00]} 32. Nf4 {[%emt 0:00:30]} Nb1 {[%emt 0:02:00]} 33. Bd3 {[%emt 0:00:30]} g5 {[%emt 0:00:30]} 34. Bxb1 {[%emt 0:00:30]} Rxb1 {[%emt 0:00:30]} 35. Nd3 {[%emt 0:00:00]} e5 {[%emt 0:00:30]} 36. Ke2 {[%emt 0:01:00]} Ke6 {[%emt 0:00:30]} 37. h3 {[%emt 0:00:00]} h5 {[%emt 0:00:00]} 38. Nc5+ {[%emt 0:01:00]} Kd6 {[%emt 0:00:00]} 39. Nd3 {[%emt 0:00:00]} h4 {[%emt 0:00:30]} 40. f4 {[%emt 0:00:00]} Rg1 {[%emt 0:00:30]} 41. fxg5 {[%emt 0:00:30]} fxg5 {[%emt 0:00:30]} 42. Ne1 {[%emt 0:00:30]} Rxe1+ {[%emt 0:00:00]} 43. Kxe1 {[%emt 0:00:30]} Kc5 {[%emt 0:00:00]} 44. Kd2 {[%emt 0:00:00]} Kb4 {[%emt 0:00:30]} 45. Kc2 {[%emt 0:00:00]} Kc4 {[%emt 0:00:30]} 46. Kd2 {[%emt 0:00:30]} d4 {[%emt 0:00:00]} 47. exd4 {[%emt 0:00:00]} Kxd4 {[%emt 0:00:00]} 48. Ke2 {[%emt 0:00:00]} Ke4 {[%emt 0:00:00]} 0-1

[Event "Turkish Youth Championship 2024"]
[Site "Samsun"]
[Date "2024.05.20"]
[Round "4"]
[White "Ozgun, Yigit Deniz"]
[Black "Selvi, Kaan"]
[Result "1-0"]
[ECO "E90"]
[WhiteElo "1917"]
[BlackElo "1881"]
[Annotator "NA"]
[PlyCount "87"]
[EventDate "2024.05.18"]
[EventType "swiss"]
[EventCountry "TUR"]
[SourceTitle "playchess.com"]
[Source "ChessBase"]
[SourceQuality "1"]
[TimeControl "5400+30"]

1. d4 {[%emt 0:06:00]} c5 2. d5 {[%emt 0:00:30]} Nf6 {[%emt 0:02:30]} 3. c4 {[%emt 0:00:00]} d6 {[%emt 0:00:30]} 4. Nc3 {[%emt 0:00:00]} g6 {[%emt 0:00:00]} 5. e4 {[%emt 0:01:30]} Bg7 {[%emt 0:00:00]} 6. h3 {[%emt 0:03:30]} O-O {[%emt 0:00:30]} 7. Bd3 {[%emt 0:00:30]} e6 {[%emt 0:00:30]} 8. Nf3 {[%emt 0:00:30]} Na6 {[%emt 0:01:30]} 9. O-O {[%emt 0:00:30]} Nc7 {[%emt 0:00:00]} 10. Re1 {[%emt 0:00:30]} Rb8 {[%emt 0:02:00]} 11. a4 {[%emt 0:00:30]} e5 {[%emt 0:03:30]} 12. Bd2 {[%emt 0:05:30]} Nh5 {[%emt 0:09:30]} 13. Nb5 {[%emt 0:01:30]} Ra8 {[%emt 0:04:30]} 14. b4 {[%emt 0:00:30]} Nxb5 {[%emt 0:19:30]} 15. axb5 {[%emt 0:00:30]} cxb4 {[%emt 0:01:30]} 16. Bxb4 {[%emt 0:00:30]} b6 {[%emt 0:01:30]} 17. Qb3 {[%emt 0:08:30]} Qf6 {[%emt 0:01:30]} 18. Bf1 {[%emt 0:00:30]} Nf4 {[%emt 0:01:30]} 19. Ra4 {[%emt 0:02:30]} Rd8 {[%emt 0:04:30]} 20. Rea1 {[%emt 0:00:00]} Rd7 {[%emt 0:00:30]} 21. Bd2 {[%emt 0:00:00]} h6 {[%emt 0:03:30]} 22. g3 {[%emt 0:07:30]} Nh5 {[%emt 0:00:30]} 23. Bg2 {[%emt 0:00:00]} Qd8 {[%emt 0:03:30]} 24. Ne1 {[%emt 0:01:00]} f5 {[%emt 0:01:30]} 25. Nc2 {[%emt 0:02:30]} Rf7 {[%emt 0:08:30]} 26. Nb4 {[%emt 0:00:30]} fxe4 {[%emt 0:00:30]} 27. Nc6 {[%emt 0:02:30]} Qf6 {[%emt 0:01:30]} 28. Qe3 {[%emt 0:00:00]} Bd7 {[%emt 0:13:26]} 29. Rxa7 {[%emt 0:01:00]} Raf8 {[%emt 0:00:07]} 30. Be1 {[%emt 0:00:00]} Nf4 {[%emt 0:03:17]} 31. gxf4 {[%emt 0:11:00]} exf4 {[%emt 0:00:39]} 32. Qxe4 {[%emt 0:00:00]} f3 {[%emt 0:00:44]} 33. Bf1 {[%emt 0:01:00]} Qg5+ {[%emt 0:02:14]} 34. Kh1 {[%emt 0:00:30]} Bxa1 {[%emt 0:06:41]} 35. Rxa1 {[%emt 0:01:30]} Re8 {[%emt 0:00:19]} 36. Qd4 {[%emt 0:01:30]} Rf4 {[%emt 0:02:09]} 37. Bd2 {[%emt 0:00:00]} Rxd4 {[%emt 0:01:29]} 38. Bxg5 {[%emt 0:00:00]} Bxc6 {[%emt 0:00:00]} 39. Be3 {[%emt 0:00:30]} Rh4 {[%emt 0:01:00]} 40. bxc6 {[%emt 0:00:00]} g5 {[%emt 0:00:26]} 41. Kh2 {[%emt 0:01:00]} Rhe4 {[%emt 0:00:54]} 42. Bd3 {[%emt 0:00:30]} R4e7 {[%emt 0:00:48]} 43. Bxb6 {[%emt 0:00:30]} Kf7 {[%emt 0:01:09]} 44. c5 {[%emt 0:00:00]} 1-0

[Event "Turkish Youth Championship 2024"]
[Site "Samsun"]
[Date "2024.05.20"]
[Round "4"]
[White "Kilic, Nurullah"]
[Black "Uslu, Tarik"]
[Result "0-1"]
[ECO "A31"]
[WhiteElo "1893"]
[BlackElo "1483"]
[Annotator "NA"]
[PlyCount "62"]
[EventDate "2024.05.18"]
[EventType "swiss"]
[EventCountry "TUR"]
[SourceTitle "playchess.com"]
[Source "ChessBase"]
[SourceQuality "1"]
[TimeControl "5400+30"]

1. c4 {[%emt 0:01:00]} Nf6 {[%emt 0:01:00]} 2. g3 {[%emt 0:01:30]} g6 {[%emt 0:00:00]} 3. Bg2 {[%emt 0:00:30]} Bg7 {[%emt 0:00:00]} 4. Nc3 {[%emt 0:01:30]} c5 {[%emt 0:00:30]} 5. Nf3 {[%emt 0:01:30]} Nc6 {[%emt 0:00:30]} 6. O-O {[%emt 0:01:30]} d6 {[%emt 0:02:30]} 7. d4 {[%emt 0:03:30]} cxd4 {[%emt 0:06:30]} 8. Nxd4 {[%emt 0:01:30]} Bd7 {[%emt 0:00:30]} 9. e3 {[%emt 0:10:30]} O-O {[%emt 0:00:30]} 10. b3 {[%emt 0:00:30]} Qa5 {[%emt 0:08:30]} 11. Nce2 {[%emt 0:16:30]} Qh5 {[%emt 0:03:30]} 12. Qd2 {[%emt 0:08:30]} Ng4 {[%emt 0:10:30]} 13. h3 {[%emt 0:00:30]} Nf6 {[%emt 0:00:30]} 14. Bb2 {[%emt 0:15:30]} Rad8 {[%emt 0:03:30]} 15. g4 {[%emt 0:06:30]} Qh6 {[%emt 0:05:30]} 16. Nf3 {[%emt 0:02:30]} Ne4 {[%emt 0:06:30]} 17. Qc2 {[%emt 0:01:30]} f5 {[%emt 0:02:30]} 18. Nh2 {[%emt 0:03:30]} Bxb2 {[%emt 0:06:30]} 19. Qxb2 {[%emt 0:01:36]} Ng5 {[%emt 0:03:30]} 20. Nf4 {[%emt 0:10:35]} e5 {[%emt 0:01:30]} 21. Bd5+ {[%emt 0:00:00]} Kh8 {[%emt 0:03:30]} 22. Kg2 {[%emt 0:05:21]} Rf6 {[%emt 0:01:30]} 23. Rh1 {[%emt 0:01:30]} Rdf8 {[%emt 0:00:30]} 24. gxf5 {[%emt 0:00:37]} gxf5 {[%emt 0:02:30]} 25. h4 {[%emt 0:02:28]} Ne4 {[%emt 0:01:30]} 26. Bxe4 {[%emt 0:00:58]} fxe4 {[%emt 0:00:30]} 27. Nd5 {[%emt 0:00:08]} Qxh4 {[%emt 0:02:30]} 28. Nxf6 {[%emt 0:00:44]} Bh3+ {[%emt 0:00:30]} 29. Kg1 {[%emt 0:00:05]} Rxf6 {[%emt 0:00:30]} 30. Nf1 {[%emt 0:00:00]} Rg6+ {[%emt 0:00:30]} 31. Ng3 {[%emt 0:00:08]} Rxg3+ {[%emt 0:00:30]} 0-1